[Event "XXXV Open Int. de Benasque"]
[Site "Benasque"]
[Date "2015.07.09"]
[Round "8"]
[White "Grigoriants, Sergey"]
[Black "Gomez Esteban, Juan Mario"]
[Result "1-0"]
[ECO "E92"]
[WhiteElo "2594"]
[BlackElo "2432"]
[Annotator "Robot 9"]
[PlyCount "79"]
[EventDate "2015.??.??"]
[EventCountry "ESP"]
[TimeControl "5400+30"]

1. d4 {[%emt 0:00:00]} Nf6 {[%emt 0:00:00]} 2. c4 {[%emt 0:00:02]} g6 {[%emt 0:
00:39]} 3. Nc3 {[%emt 0:00:35]} Bg7 {[%emt 0:00:46]} 4. e4 {[%emt 0:00:44]} d6
{[%emt 0:00:11]} 5. Nf3 {[%emt 0:02:58]} O-O {[%emt 0:00:23]} 6. Be2 {[%emt 0:
01:13]} e5 {[%emt 0:00:12]} 7. Be3 {[%emt 0:00:15]} Na6 {[%emt 0:15:30]} 8. O-O
{[%emt 0:01:20]} Ng4 {[%emt 0:02:40]} 9. Bg5 {[%emt 0:02:46]} Qe8 {[%emt 0:03:
02]} 10. h3 {[%emt 0:07:49]} h6 {[%emt 0:16:43]} 11. Bh4 {[%emt 0:16:57]} Nf6 {
[%emt 0:03:37]} 12. Bxf6 {[%emt 0:11:40]} Bxf6 {[%emt 0:00:27]} 13. c5 {[%emt
0:00:03]} Nb8 {[%emt 0:29:58]} 14. cxd6 {[%emt 0:07:29]} cxd6 {[%emt 0:00:21]}
15. Nd5 {[%emt 0:00:10]} Qd8 {[%emt 0:09:17]} 16. dxe5 {[%emt 0:02:07]} dxe5 {
[%emt 0:03:01]} 17. Qc1 {[%emt 0:02:16]} Nc6 {[%emt 0:00:19]} 18. Nxf6+ {[%emt
0:05:11]} Qxf6 {[%emt 0:00:07]} 19. Qxh6 {[%emt 0:00:03]} Be6 {[%emt 0:03:01]}
20. Bb5 {[%emt 0:01:27]} Rfc8 {[%emt 0:06:00]} 21. Rfc1 {[%emt 0:14:52]} Nb4 {
[%emt 0:01:18]} 22. Rxc8+ {[%emt 0:00:41]} Rxc8 {[%emt 0:00:05]} 23. a3 {[%emt
0:00:05]} Nc2 {[%emt 0:01:31]} 24. Rc1 {[%emt 0:03:53]} Nd4 {[%emt 0:00:07]}
25. Rxc8+ {[%emt 0:00:45]} Bxc8 {[%emt 0:00:04]} 26. Nxd4 {[%emt 0:00:04]} exd4
{[%emt 0:00:07]} 27. Qc1 {[%emt 0:00:07]} Be6 {[%emt 0:00:55]} 28. Bd3 {[%emt
0:00:19]} Qe5 {[%emt 0:01:00]} 29. f4 {[%emt 0:00:33]} Qa5 {[%emt 0:00:23]} 30.
f5 {[%emt 0:01:53]} gxf5 {[%emt 0:02:06]} 31. exf5 {[%emt 0:00:14]} Bb3 {[%emt
0:00:41]} 32. Qg5+ {[%emt 0:00:34]} Kf8 {[%emt 0:00:09]} 33. Qh6+ {[%emt 0:00:
12]} Ke7 {[%emt 0:00:21]} 34. Qh4+ {[%emt 0:00:21]} f6 {[%emt 0:00:29]} 35.
Qxd4 {[%emt 0:00:23]} Qe1+ {[%emt 0:01:02]} 36. Kh2 {[%emt 0:00:20]} Qd1 {
[%emt 0:00:25]} 37. Qb4+ {[%emt 0:00:20]} Kd7 {[%emt 0:00:41]} 38. Qxb7+ {
[%emt 0:00:44]} Kd6 {[%emt 0:00:03]} 39. Qb4+ {[%emt 0:01:09]} Ke5 {[%emt 0:00:
15]} 40. Qe4+ {[%emt 0:01:01] Kd5} 1-0

[Event "XXXV Open Int. de Benasque"]
[Site "Benasque"]
[Date "2015.07.09"]
[Round "8"]
[White "Campora, Daniel H"]
[Black "Vocaturo, Daniele"]
[Result "1/2-1/2"]
[ECO "C02"]
[WhiteElo "2437"]
[BlackElo "2572"]
[Annotator "Robot 9"]
[PlyCount "68"]
[EventDate "2015.??.??"]
[EventCountry "ESP"]
[TimeControl "5400+30"]

1. e4 {[%emt 0:00:00]} e6 {[%emt 0:00:22]} 2. d4 {[%emt 0:00:10]} d5 {[%emt 0:
00:37]} 3. e5 {[%emt 0:01:01]} c5 {[%emt 0:01:14]} 4. c3 {[%emt 0:00:07]} Nc6 {
[%emt 0:00:32]} 5. Nf3 {[%emt 0:00:08]} Bd7 {[%emt 0:00:56]} 6. Be2 {[%emt 0:
03:15]} Nge7 {[%emt 0:02:06]} 7. O-O {[%emt 0:04:41]} Ng6 {[%emt 0:02:26]} 8.
Re1 {[%emt 0:05:41]} Be7 {[%emt 0:02:16]} 9. a3 {[%emt 0:08:37]} O-O {[%emt 0:
05:35]} 10. b4 {[%emt 0:02:09]} cxd4 {[%emt 0:04:40]} 11. cxd4 {[%emt 0:00:07]}
Rc8 {[%emt 0:02:04]} 12. Bd3 {[%emt 0:02:10]} f6 {[%emt 0:11:10]} 13. Bb2 {
[%emt 0:08:50]} fxe5 {[%emt 0:03:02]} 14. Bxg6 {[%emt 0:00:40]} hxg6 {[%emt 0:
01:12]} 15. dxe5 {[%emt 0:00:20]} g5 {[%emt 0:06:50]} 16. h3 {[%emt 0:06:57]}
Be8 {[%emt 0:03:39]} 17. Nd4 {[%emt 0:00:54]} Nxd4 {[%emt 0:04:52]} 18. Bxd4 {
[%emt 0:00:23]} a5 {[%emt 0:00:46]} 19. bxa5 {[%emt 0:03:25]} Qxa5 {[%emt 0:00:
22]} 20. Qd2 {[%emt 0:00:12]} Qxd2 {[%emt 0:05:57]} 21. Nxd2 {[%emt 0:00:30]}
g4 {[%emt 0:03:11]} 22. hxg4 {[%emt 0:07:08]} Rf4 {[%emt 0:00:45]} 23. Nb3 {
[%emt 0:03:52]} Rxg4 {[%emt 0:01:02]} 24. f3 {[%emt 0:08:08]} Rf4 {[%emt 0:01:
39]} 25. Rec1 {[%emt 0:01:52]} Rc4 {[%emt 0:04:16]} 26. Bc5 {[%emt 0:01:26]}
Bd8 {[%emt 0:04:20]} 27. Be3 {[%emt 0:07:08]} Rxc1+ {[%emt 0:05:21]} 28. Rxc1 {
[%emt 0:00:49]} Rc4 {[%emt 0:00:28]} 29. Rxc4 {[%emt 0:02:57]} dxc4 {[%emt 0:
00:04]} 30. Nd4 {[%emt 0:00:15]} Kf7 {[%emt 0:01:50]} 31. Kf2 {[%emt 0:07:28]}
Be7 {[%emt 0:00:28]} 32. Bc1 {[%emt 0:01:06]} Bc5 {[%emt 0:00:53]} 33. Bb2 {
[%emt 0:00:35]} Bc6 {[%emt 0:02:01]} 34. Ke2 {[%emt 0:01:29]} Bxd4 {[%emt 0:03:
57]} 1/2-1/2

[Event "XXXV Open Int. de Benasque"]
[Site "Benasque"]
[Date "2015.07.09"]
[Round "8"]
[White "Arribas Lopez, Angel"]
[Black "Adhiban, B."]
[Result "1/2-1/2"]
[ECO "A05"]
[WhiteElo "2546"]
[BlackElo "2627"]
[Annotator "Robot 9"]
[PlyCount "145"]
[EventDate "2015.??.??"]
[EventCountry "ESP"]
[TimeControl "5400+30"]

1. Nf3 {[%emt 0:00:22]} Nf6 {[%emt 0:00:00]} 2. c4 {[%emt 0:00:19]} g6 {[%emt
0:00:22]} 3. Nc3 {[%emt 0:00:08]} d5 {[%emt 0:00:02]} 4. cxd5 {[%emt 0:00:08]}
Nxd5 {[%emt 0:00:01]} 5. Qb3 {[%emt 0:00:08]} Nb6 {[%emt 0:00:19]} 6. d4 {
[%emt 0:00:06]} Bg7 {[%emt 0:00:20]} 7. e4 {[%emt 0:00:06]} Bg4 {[%emt 0:00:38]
} 8. Bb5+ {[%emt 0:00:11]} c6 {[%emt 0:00:05]} 9. Ng5 {[%emt 0:00:15]} O-O {
[%emt 0:00:05]} 10. Be2 {[%emt 0:00:05]} Bc8 {[%emt 0:01:07]} 11. h4 {[%emt 0:
15:52]} h6 {[%emt 0:00:05]} 12. Nf3 {[%emt 0:00:15]} Bg4 {[%emt 0:00:08]} 13.
Be3 {[%emt 0:01:18]} N8d7 {[%emt 0:02:35]} 14. Qc2 {[%emt 0:09:59]} e6 {[%emt
0:20:30]} 15. O-O-O {[%emt 0:18:02]} Qe7 {[%emt 0:06:36]} 16. h5 {[%emt 0:04:
31]} g5 {[%emt 0:06:03]} 17. Nxg5 {[%emt 0:19:10]} Bxe2 {[%emt 0:00:06]} 18.
Qxe2 {[%emt 0:00:04]} hxg5 {[%emt 0:01:03]} 19. h6 {[%emt 0:00:06]} Bf6 {[%emt
0:09:13]} 20. e5 {[%emt 0:00:06]} Nxe5 {[%emt 0:00:11]} 21. dxe5 {[%emt 0:00:
06]} Bxe5 {[%emt 0:00:04]} 22. Ne4 {[%emt 0:00:44]} Na4 {[%emt 0:08:59]} 23.
Bxg5 {[%emt 0:08:45]} f6 {[%emt 0:01:01]} 24. Nxf6+ {[%emt 0:07:46]} Bxf6 {
[%emt 0:00:04]} 25. Bxf6 {[%emt 0:00:05]} Rxf6 {[%emt 0:00:43]} 26. Qg4+ {
[%emt 0:00:08]} Kh8 {[%emt 0:00:20]} 27. Qxa4 {[%emt 0:00:14]} Qc5+ {[%emt 0:
01:20]} 28. Qc2 {[%emt 0:03:13]} Qxc2+ {[%emt 0:00:07]} 29. Kxc2 {[%emt 0:00:
03]} Rxf2+ {[%emt 0:00:04]} 30. Rd2 {[%emt 0:00:03]} Rxd2+ {[%emt 0:02:41]} 31.
Kxd2 {[%emt 0:00:04]} Rg8 {[%emt 0:00:05]} 32. Rh2 {[%emt 0:00:03]} Rg3 {[%emt
0:01:20]} 33. Ke2 {[%emt 0:02:17]} Kh7 {[%emt 0:00:39]} 34. Kf2 {[%emt 0:00:01]
} Rd3 {[%emt 0:02:50]} 35. Rh1 {[%emt 0:07:36]} Rd2+ {[%emt 0:01:22]} 36. Kf3 {
[%emt 0:00:02]} Rxb2 {[%emt 0:00:42]} 37. g4 {[%emt 0:00:02]} Rd2 {[%emt 0:09:
15]} 38. g5 {[%emt 0:01:52]} Rd8 {[%emt 0:01:56]} 39. Kg4 {[%emt 0:03:28]} Kg6
{[%emt 0:00:40]} 40. h7 {[%emt 0:00:13]} Rh8 {[%emt 0:00:06]} 41. Rh6+ {[%emt
0:00:05]} Kg7 {[%emt 0:00:04]} 42. Rxe6 {[%emt 0:00:08]} Rxh7 {[%emt 0:00:19]}
43. Kf5 {[%emt 0:00:08]} Kf8 {[%emt 0:03:12]} 44. Kg6 {[%emt 0:01:35]} Rd7 {
[%emt 0:13:40]} 45. Kh6 {[%emt 0:00:11]} Rd2 {[%emt 0:00:22]} 46. Rf6+ {[%emt
0:00:28]} Kg8 {[%emt 0:00:34]} 47. Rg6+ {[%emt 0:00:10]} Kf8 {[%emt 0:01:56]}
48. Rg7 {[%emt 0:00:46]} Rxa2 {[%emt 0:00:18]} 49. Rxb7 {[%emt 0:00:12]} a5 {
[%emt 0:00:20]} 50. Rc7 {[%emt 0:02:04]} Rc2 {[%emt 0:00:26]} 51. Ra7 {[%emt 0:
00:37]} Ra2 {[%emt 0:00:06]} 52. Rc7 {[%emt 0:00:45]} Rc2 {[%emt 0:00:05]} 53.
Ra7 {[%emt 0:00:20]} Ra2 {[%emt 0:00:04]} 54. Ra8+ {[%emt 0:00:06]} Ke7 {[%emt
0:00:03]} 55. g6 {[%emt 0:00:07]} a4 {[%emt 0:02:51]} 56. Ra6 {[%emt 0:01:48]}
a3 {[%emt 0:02:44]} 57. Rxc6 {[%emt 0:00:25]} Rh2+ {[%emt 0:00:13]} 58. Kg7 {
[%emt 0:00:02]} a2 {[%emt 0:00:30]} 59. Ra6 {[%emt 0:00:06]} Rg2 {[%emt 0:00:
46]} 60. Kh7 {[%emt 0:00:25]} Rh2+ {[%emt 0:01:12]} 61. Kg8 {[%emt 0:00:38]}
Rg2 {[%emt 0:00:24]} 62. g7 {[%emt 0:00:37]} Rh2 {[%emt 0:00:28]} 63. Ra7+ {
[%emt 0:00:07]} Ke8 {[%emt 0:00:09]} 64. Ra3 {[%emt 0:00:06]} Re2 {[%emt 0:00:
29]} 65. Ra8+ {[%emt 0:01:35]} Ke7 {[%emt 0:00:01]} 66. Ra7+ {[%emt 0:00:16]}
Ke8 {[%emt 0:00:06]} 67. Ra8+ {[%emt 0:01:05]} Ke7 {[%emt 0:00:01]} 68. Ra6 {
[%emt 0:00:17]} Rh2 {[%emt 0:00:14]} 69. Ra7+ {[%emt 0:00:31]} Ke8 {[%emt 0:00:
01]} 70. Ra5 {[%emt 0:00:20]} Re2 {[%emt 0:00:39]} 71. Ra8+ {[%emt 0:00:15]}
Ke7 {[%emt 0:00:04]} 72. Ra7+ {[%emt 0:00:03]} Ke8 {[%emt 0:00:04]} 73. Ra8+ {
[%emt 0:00:35]} 1/2-1/2

[Event "XXXV Open Int. de Benasque"]
[Site "Benasque"]
[Date "2015.07.09"]
[Round "8"]
[White "Gretarsson, Hjorvar Steinn"]
[Black "Cori, Jorge"]
[Result "0-1"]
[ECO "D70"]
[WhiteElo "2559"]
[BlackElo "2623"]
[Annotator "Robot 9"]
[PlyCount "56"]
[EventDate "2015.??.??"]
[EventCountry "ESP"]
[TimeControl "5400+30"]

1. d4 {[%emt 0:03:06]} Nf6 {[%emt 0:00:46]} 2. c4 {[%emt 0:00:09]} g6 {[%emt 0:
01:22]} 3. f3 {[%emt 0:00:07]} d5 {[%emt 0:02:15]} 4. cxd5 {[%emt 0:00:06]}
Nxd5 {[%emt 0:00:03]} 5. e4 {[%emt 0:00:05]} Nb6 {[%emt 0:00:03]} 6. Nc3 {
[%emt 0:00:04]} Bg7 {[%emt 0:00:03]} 7. Be3 {[%emt 0:00:05]} O-O {[%emt 0:09:
33]} 8. Qd2 {[%emt 0:00:09]} Nc6 {[%emt 0:00:05]} 9. O-O-O {[%emt 0:00:40]} Qd6
{[%emt 0:01:31]} 10. Kb1 {[%emt 0:00:20]} Rd8 {[%emt 0:02:50]} 11. Nb5 {[%emt
0:01:22]} Qd7 {[%emt 0:00:04]} 12. d5 {[%emt 0:00:49]} a6 {[%emt 0:01:06]} 13.
Nc3 {[%emt 0:00:14]} Qe8 {[%emt 0:11:03]} 14. Qc1 {[%emt 0:00:07]} Ne5 {[%emt
0:00:31]} 15. h4 {[%emt 0:13:30]} e6 {[%emt 0:21:54]} 16. Bh6 {[%emt 0:09:55]}
Bxh6 {[%emt 0:09:24]} 17. Qxh6 {[%emt 0:00:36]} Qe7 {[%emt 0:00:08]} 18. Qe3 {
[%emt 0:12:44]} exd5 {[%emt 0:02:13]} 19. Nxd5 {[%emt 0:02:34]} Nxd5 {[%emt 0:
00:54]} 20. exd5 {[%emt 0:00:19]} Be6 {[%emt 0:05:11]} 21. Nh3 {[%emt 0:03:15]}
Nc4 {[%emt 0:02:33]} 22. Qb3 {[%emt 0:03:38]} Ne3 {[%emt 0:02:16]} 23. Re1 {
[%emt 0:02:03]} Nxd5 {[%emt 0:07:54]} 24. Bc4 {[%emt 0:03:06]} Qxh4 {[%emt 0:
01:18]} 25. f4 {[%emt 0:03:20]} b5 {[%emt 0:05:20]} 26. Bxd5 {[%emt 0:01:35]}
Rxd5 {[%emt 0:00:49]} 27. Ng5 {[%emt 0:02:18]} Qxf4 {[%emt 0:00:06]} 28. Nxh7 {
[%emt 0:01:45]} Rh5 {[%emt 0:02:42]} 0-1

[Event "XXXV Open Int. de Benasque"]
[Site "Benasque"]
[Date "2015.07.09"]
[Round "8"]
[White "Kanmazalp, Ogulcan"]
[Black "Romanov, Evgeny"]
[Result "0-1"]
[ECO "C18"]
[WhiteElo "2468"]
[BlackElo "2575"]
[Annotator "Robot 9"]
[PlyCount "74"]
[EventDate "2015.??.??"]
[EventCountry "ESP"]
[TimeControl "5400+30"]

1. e4 {[%emt 0:00:09]} e6 {[%emt 0:00:00]} 2. d4 {[%emt 0:00:20]} d5 {[%emt 0:
00:00]} 3. Nc3 {[%emt 0:00:41]} Bb4 {[%emt 0:00:41]} 4. e5 {[%emt 0:00:26]} c5
{[%emt 0:00:08]} 5. a3 {[%emt 0:00:08]} Bxc3+ {[%emt 0:00:07]} 6. bxc3 {[%emt
0:00:05]} Ne7 {[%emt 0:00:05]} 7. Qg4 {[%emt 0:01:13]} Kf8 {[%emt 0:00:17]} 8.
a4 {[%emt 0:06:23]} Qc7 {[%emt 0:01:53]} 9. Qd1 {[%emt 0:00:45]} cxd4 {[%emt 0:
08:30]} 10. cxd4 {[%emt 0:00:12]} Qc3+ {[%emt 0:00:51]} 11. Bd2 {[%emt 0:00:16]
} Qxd4 {[%emt 0:00:23]} 12. Nf3 {[%emt 0:00:25]} Qe4+ {[%emt 0:00:48]} 13. Be2
{[%emt 0:00:14]} b6 {[%emt 0:01:44]} 14. O-O {[%emt 0:13:00]} Ba6 {[%emt 0:01:
31]} 15. Bb5 {[%emt 0:35:45]} Bxb5 {[%emt 0:04:18]} 16. axb5 {[%emt 0:00:08]}
Nd7 {[%emt 0:02:09]} 17. c4 {[%emt 0:07:19]} Qxc4 {[%emt 0:10:57]} 18. Qb1 {
[%emt 0:03:11]} Qc8 {[%emt 0:21:33]} 19. Bb4 {[%emt 0:10:01]} Nc5 {[%emt 0:01:
42]} 20. Bxc5 {[%emt 0:06:43]} bxc5 {[%emt 0:00:09]} 21. b6 {[%emt 0:00:02]}
axb6 {[%emt 0:00:54]} 22. Rxa8 {[%emt 0:01:59]} Qxa8 {[%emt 0:00:03]} 23. Qxb6
{[%emt 0:00:06]} g6 {[%emt 0:14:40]} 24. Qxc5 {[%emt 0:02:10]} Qb7 {[%emt 0:00:
45]} 25. Qc1 {[%emt 0:07:55]} Kg7 {[%emt 0:00:39]} 26. Qf4 {[%emt 0:00:08]} Rc8
{[%emt 0:01:28]} 27. Qf6+ {[%emt 0:01:36]} Kg8 {[%emt 0:00:05]} 28. Ng5 {[%emt
0:00:23]} Nf5 {[%emt 0:00:34]} 29. g4 {[%emt 0:00:28]} Ng7 {[%emt 0:01:54]} 30.
h3 {[%emt 0:02:03]} h6 {[%emt 0:03:02]} 31. Nf3 {[%emt 0:00:19]} Ne8 {[%emt 0:
01:14]} 32. Qf4 {[%emt 0:00:35]} Kg7 {[%emt 0:00:11]} 33. Rc1 {[%emt 0:00:21]}
Rc4 {[%emt 0:03:39]} 34. Qd2 {[%emt 0:00:25]} Qb3 {[%emt 0:05:19]} 35. Kg2 {
[%emt 0:00:55]} Nc7 {[%emt 0:00:29]} 36. Rxc4 {[%emt 0:00:32]} dxc4 {[%emt 0:
00:58]} 37. Qd8 {[%emt 0:00:06]} Nd5 {[%emt 0:00:22]} 0-1

[Event "XXXV Open Int. de Benasque"]
[Site "Benasque"]
[Date "2015.07.09"]
[Round "8"]
[White "Jansa, Vlastimil"]
[Black "Kharitonov, Alexandr"]
[Result "1/2-1/2"]
[ECO "B19"]
[WhiteElo "2457"]
[BlackElo "2536"]
[Annotator "Robot 9"]
[PlyCount "35"]
[EventDate "2015.??.??"]
[EventCountry "ESP"]
[TimeControl "5400+30"]

1. e4 {[%emt 0:00:00]} c6 {[%emt 0:00:00]} 2. d4 {[%emt 0:00:00]} d5 {[%emt 0:
00:00]} 3. Nd2 {[%emt 0:00:01]} dxe4 {[%emt 0:00:00]} 4. Nxe4 {[%emt 0:00:04]}
Bf5 {[%emt 0:00:06]} 5. Ng3 {[%emt 0:00:07]} Bg6 {[%emt 0:00:18]} 6. h4 {[%emt
0:00:12]} h6 {[%emt 0:00:09]} 7. Nf3 {[%emt 0:00:10]} Nd7 {[%emt 0:00:16]} 8.
h5 {[%emt 0:00:10]} Bh7 {[%emt 0:00:10]} 9. Bd3 {[%emt 0:00:02]} Bxd3 {[%emt 0:
00:18]} 10. Qxd3 {[%emt 0:00:03]} e6 {[%emt 0:00:23]} 11. Bd2 {[%emt 0:00:17]}
Ngf6 {[%emt 0:00:19]} 12. O-O-O {[%emt 0:00:12]} Be7 {[%emt 0:00:15]} 13. Ne4 {
[%emt 0:02:19]} Qb6 {[%emt 0:01:38]} 14. Nxf6+ {[%emt 0:06:25]} Nxf6 {[%emt 0:
01:15]} 15. Ne5 {[%emt 0:09:02]} O-O {[%emt 0:02:16]} 16. g4 {[%emt 0:10:30]}
Rad8 {[%emt 0:00:38]} 17. c3 {[%emt 0:09:31]} Nd7 {[%emt 0:20:37]} 18. Qe2 {
[%emt 0:06:50]} 1/2-1/2